Cogmind - Beta 15 @@@ ROGUE MODE // 2025.08.14 @ 17:36:55 Player: H3-RMN Result: System corrupted Performance ------------- Evolutions (0) 0 Regions Visited (1) 200 Robots Destroyed (71) 355 Value Destroyed (721) 721 Prototype IDs (0) 0 Alien Tech Used (0) 0 Bonus (0) 0 TOTAL SCORE: 1276 Bonus ------- None Cogmind --------- Core Integrity 0/250 Matter 171/300 Energy 104/125 System Corruption 100% Temperature Cool (0) Movement Rolling (140) Ox4 Location -10/Materials Parts ------- > --- POWER (1) -------- Light Ion Engine > --- PROPULSION (2) --- Wheel Wheel > --- UTILITY (2) ------ Huge Storage Unit Structural Scanner > --- WEAPON (2) ------- EM Pulse Gun EM Pulse Gun > --- INVENTORY (25) --- Light Ion Engine Light Ion Engine Subdweller Power Source Light Treads Aluminum Leg Wheel Compact Wheel Subdweller Monowheel Small Storage Unit Medium Storage Unit Assault Rifle Light Assault Rifle Welding Torch Peak State ------------ > --- POWER ------------ Light Ion Engine > --- PROPULSION ------- Light Treads Subdweller Monowheel > --- UTILITY ---------- Improved Heat Sink Huge Storage Unit > --- WEAPON ----------- EM Pulse Gun Grenade Launcher > --- INVENTORY -------- Ion Engine Light Treads Aluminum Leg Wheel Wheel Compact Wheel Small Storage Unit Medium Storage Unit EM Pulse Gun Assault Rifle Welding Torch [Rating: 11] Favorites ----------- Power Light Ion Engine Engine Light Ion Engine Propulsion Wheel Treads Light Treads Leg Aluminum Leg Wheel Wheel Hover Unit Hover Unit Utility Small Storage Unit Device Improved Heat Sink Storage Small Storage Unit Processor Terrain Scan Processor Weapon EM Pulse Gun Energy Gun EM Pulse Gun Ballistic Gun Assault Rifle Launcher Grenade Launcher Special Weapon Welding Torch Build | -11 -10 ------- Run | Yrd Mat Slots Evolved . | . . Power . | . . Propulsion . | . . Utility . | . . Weapon . | . . Parts Attached 61 | 16 45 Power 12 | 2 10 Engine 12 | 2 10 Core . | . . Reactor . | . . Propulsion 21 | 7 14 Treads 3 | . 3 Leg 3 | . 3 Wheel 14 | 7 7 Hover 1 | . 1 Flight . | . . Utility 20 | 3 17 Device 8 | 2 6 Storage 8 | 1 7 Processor 4 | . 4 Hackware . | . . Protection . | . . Artifact . | . . Weapon 8 | 4 4 Energy Gun 3 | 2 1 Energy Cannon . | . . Ballistic Gun 1 | 1 . Ballistic Cannon . | . . Launcher 1 | . 1 Special Weapon 3 | 1 2 Impact Weapon . | . . Slashing Weapon . | . . Piercing Weapon . | . . Special Melee Weapon . | . . Unidentified Prototypes . | . . Corrupted Parts 41 | 7 34 System Corruption 100 | 23 77 Parts Lost 9 | . 9 Power 2 | . 2 Propulsion 4 | . 4 Utility 1 | . 1 Weapon 2 | . 2 Highest Loss Streak 5 | . 5 To Critical Strikes 1 | . 1 Average Backups 7 | 6 7 Power . | . . Propulsion 4 | 4 3 Utility . | . 1 Weapon 1 | . 1 Tool/Special . | . . Unused Backups 3 | 1 2 Power 2 | 1 1 Propulsion . | . . Utility . | . . Weapon 1 | . 1 Tool/Special . | . . Average Slot Usage (%) 93 | . 93 Engine 13 | . 13 Treads 9 | . 9 Wheel 15 | . 15 Hover 1 | . 1 Device 9 | . 9 Storage 15 | . 15 Energy Gun 19 | . 19 Ballistic Gun 3 | . 3 Special Weapon 4 | . 4 Peak Build Rating 11 | 7 11 Average Rating 6 | 5 8 On Entrance 3 | . 6 Naked Turns . | . . Heaviest Build 91 | 13 91 Greatest Support 40 | 26 40 Greatest Overweight (x) 30 | 1 30 Average Overweight (x) 1 | . 2 Largest Inventory Capacity 25 | 8 25 Average Capacity 12 | 7 18 Most Carried 13 | 8 13 Average Carried 7 | 6 7 Final Capacity 25 | 8 25 Final Carried 13 | 7 13 Class Distribution -------------------- 78% | Mutant 21% | Scavenger-Mutant Dominant Class ---------------- Mutant | -10/Materials Resources | -11 -10 ----------- Run | Yrd Mat Matter Collected 1373 | 545 828 Remotely 20 | . 20 Salvage Created 2227 | 423 1804 Parts 173 | 31 142 Haulers Intercepted 2 | . 2 Recyclers Shooed 2 | . 2 Parts Field Recycled . | . . Retrieved Matter . | . . Parts Self-Destructed . | . . Prevented . | . . Kills | -11 -10 ------- Run | Yrd Mat Combat Hostiles Destroyed 13 | . 13 Guns 9 | . 9 AOE 3 | . 3 Classes Destroyed 10 | 3 7 Worker 18 | 4 14 Builder 15 | . 15 Tunneler 12 | 9 3 Hauler 2 | . 2 Recycler 6 | 1 5 Operator 2 | . 2 Watcher 3 | . 3 Swarmer 3 | . 3 Grunt 7 | . 7 Subdweller 3 | . 3 Best Kill Streak 5 | 4 5 Combat Bots Only 3 | . 3 Max Kills in Single Turn 1 | 1 1 Gunslinging . | . . Exploded 1 | . 1 Melee . | . . Uniques/NPCs Destroyed . | . . Combat | -11 -10 -------- Run | Yrd Mat Hostile Shots Fired 128 | . 128 Missed 35 | . 35 Hits 93 | . 93 Projectile 93 | . 93 Critical Strikes 3 | . 3 Damage Taken 1006 | . 1006 Core 212 | . 212 Absorbed by Shields . | . . Core Remaining (%) 100 | 100 . Volleys Fired 275 | 34 241 Largest 2 | 2 2 Hottest 80 | 80 80 Shots Fired 359 | 69 290 Gun 354 | 69 285 Cannon . | . . Launcher 5 | . 5 Special . | . . Kinetic 36 | 4 32 Thermal . | . . Explosive 5 | . 5 Electromagnetic 318 | 65 253 Robot Hit Streak 13 | 4 13 Robot Miss Streak 12 | 5 12 Penetration Max . | . . Secondary Targets . | . . Shots Hit Robots 173 | 32 141 Core Hits 83 | 14 69 Critical Kills . | . . Critical Parts Destroyed . | . . Critical Strikes 3 | . 3 Corrupt 3 | . 3 Melee Attacks . | . . Impact . | . . Slashing . | . . Piercing . | . . Sneak Attacks . | . . Combat Hostiles . | . . Follow-up Attacks . | . . Damage Inflicted 3139 | 518 2621 Guns 2463 | 444 2019 Cannons . | . . Explosions 676 | 74 602 Melee . | . . Ramming . | . . Kinetic 283 | . 283 Thermal 392 | 74 318 Explosive 284 | . 284 Electromagnetic 2180 | 444 1736 Impact . | . . Slashing . | . . Piercing . | . . Highest Corruption 100 | 23 100 Average Corruption 41 | 22 61 Corruption Purged . | . . Corruption Blocked . | . . Effects 230 | 86 144 Message Errors 55 | 22 33 Matter Fused 42 | 22 20 Heat Flow Errors 23 | 9 14 Energy Discharges 11 | 7 4 Parts Fused 2 | 1 1 Data Loss (minor) 25 | 13 12 Data Loss (major) 8 | 6 2 Misfires 5 | 3 2 Alerts 3 | 1 2 Weapon Failures 56 | 2 54 Overload Shots . | . . Overflow Damage 37 | . 37 Projectiles . | . . Explosions 37 | . 37 Melee . | . . Knockbacks . | . . Impact . | . . Kinetic . | . . Secondary . | . . Self-Inflicted Damage 87 | . 87 Shots 3 | . 3 Rammed . | . . Targets Rammed . | . . Kicked . | . . Crushed . | . . Highest Temperature 354 | 275 354 Average Temperature 101 | 64 121 Received Heat Transfer 237 | . 237 Effects 7 | . 7 Shutdowns 1 | . 1 Energy Bleed 2 | . 2 Interference 4 | . 4 Siege Activations . | . . Martial Activations . | . . Shielding Activations . | . . Robots Disrupted . | . . Combat Hostiles . | . . Robots Corrupted 1 | . 1 Combat Hostiles 1 | . 1 Parts Fried 15 | 2 13 Impact Corruptions . | . . Robots Melted . | . . Combat Hostiles . | . . Parts Melted 1 | . 1 Heat Transferred 450 | 50 400 Parts Sabotaged . | . . Parts Stolen . | . . Parts Stripped . | . . Power Chain Reactions 10 | 2 8 Alert | -11 -10 ------- Run | Yrd Mat Maximum Alert Level . | . . Low Security (%) 100 | 100 100 Level 1 . | . . Level 2 . | . . Level 3 . | . . Level 4 . | . . Level 5 . | . . High Security . | . . Max Security . | . . Peak Influence 105 | 10 105 Initial . | . . Average 17 | . 36 Influence Increases 678 | 70 608 Destroy 0b10 Robot/C 200 | . 200 Destroy 0b10 Robot/NC 290 | 70 220 Destroy Leader 60 | . 60 Successful Hack 3 | . 3 Disable Machine 15 | . 15 Destroy Structure 35 | . 35 Lose Combat Pursuer 75 | . 75 Influence Decreases 636 | 70 566 Time Decay 546 | 70 476 Lost Part 90 | . 90 Squads Dispatched 2 | . 2 Investigation 1 | . 1 Extermination . | . . Reinforcement 1 | . 1 Assault . | . . Garrison . | . . Intercept . | . . Searches Triggered . | . . Construction Impeded . | . . Haulers Reinforced . | . . Active Scanning Responses . | . . Cargo Convoy Interrupts . | . . Stealth | -11 -10 --------- Run | Yrd Mat Distress Signals 2 | . 2 Communications Jammed . | . . Distress Signals . | . . Times Spotted 25 | . 25 Peak Tracking Total 7 | . 7 Tactical Retreats 2 | . 2 Traps | -11 -10 ------- Run | Yrd Mat Traps Triggered . | . . Indirectly . | . . Trap Hack Attempts . | . . Triggered . | . . Disarmed . | . . Reprogrammed . | . . Reused . | . . Traps Extracted . | . . Installed . | . . Triggered . | . . Machines | -11 -10 ---------- Run | Yrd Mat Machines Disabled 3 | . 3 Max in Single Turn 1 | . 1 Machines Repaired . | . . Machines Dismantled . | . . Machines Sabotaged . | . . Overloaded Fab Kills . | . . Hacking | -11 -10 --------- Run | Yrd Mat Machines Accessed 1 | . 1 Terminals . | . . Fabricators . | . . Repair Stations . | . . Recycling Units 1 | . 1 Scanalyzers . | . . Garrison Access . | . . Total Hacks 2 | . 2 Successful 1 | . 1 Failed 1 | . 1 Catastrophic . | . . Database Lockouts . | . . Manual 2 | . 2 Terminals . | . . Fabricators . | . . Repair Stations . | . . Recycling Units 2 | . 2 Scanalyzers . | . . Garrison Access . | . . Terminal Hacks . | . . Fabricator Hacks . | . . Repair Station Hacks . | . . Recycling Unit Hacks . | . . Scanalyzer . | . . Garrison Access Hacks . | . . Unauthorized Hacks 1 | . 1 Terminals . | . . Fabricators . | . . Repair Stations . | . . Recycling Units 1 | . 1 Recyclers 1 | . 1 Scanalyzers . | . . Garrison Access . | . . Data Cores Recovered 1 | . 1 Used . | . . Hacking Detections 1 | . 1 Full Trace Events . | . . Feedback Events . | . . Feedback Blocked . | . . Robot Schematics Acquired . | . . Robots Built . | . . Authchips . | . . Time . | . . Total Robot Build Rating . | . . Part Schematics Acquired . | . . Parts Built . | . . Authchips . | . . Time . | . . Total Part Build Rating . | . . Parts Repaired . | . . Time . | . . Parts Recycled . | . . Recycled Matter . | . . Retrieved Matter . | . . Retrieved Components . | . . Parts Scanalyzed . | . . Part Schematics Acquired . | . . Parts Damaged . | . . Bothacking | -11 -10 ------------ Run | Yrd Mat Used RIF Installer . | . . Robots Hacked . | . . Non-combat . | . . Combat . | . . Robot Hacks Applied . | . . Relay Couplers Released . | . . Fabnet Peak Effective % . | . . Robots Rewired . | . . Allies Hacked . | . . Hacks Repelled . | . . Allies | -11 -10 -------- Run | Yrd Mat Total Allies . | . . Largest Group . | . . Highest-Rated Group . | . . Highest-Rated Ally . | . . Total Orders . | . . Ally Attacks . | . . Total Damage . | . . Kills . | . . Allies Corrupted . | . . Allies Melted . | . . Intel | -11 -10 ------- Run | Yrd Mat Active Infowar (turns) 166 | 43 123 Optics 1 | . 1 Terrain 60 | . 60 Structural 46 | . 46 Seismic 45 | 43 2 T.N.C. 14 | . 14 Robot Analysis Total . | . . Derelict Logs Recovered . | . . Drone Launches . | . . Drone Recoveries . | . . Exploration | -11 -10 ------------- Run | Yrd Mat Turns Passed 3557 | 1931 1626 Spaces Moved 885 | 331 554 Core 9 | 4 5 Treads 137 | . 137 Legs . | . . Wheels 688 | 327 361 Hover 51 | . 51 Flight . | . . Fastest Speed 50 | 50 80 Average Speed 127 | 91 148 Slowest Speed 1550 | 100 1550 Overloaded Moves . | . . Propulsion Burnouts . | . . Robots Hopped . | . . Potential Cave-ins . | . . Cave-ins Triggered . | . . Exploration Rate (%) 26 | 6 47 Regions Visited 1 Branch Regions . Pre-discovered Areas . | . . Known Exits Taken . | . . Unknown Exits Taken 1 | 1 . Scrap Searched . | . . Spaces Dug 8 | . 8 Terrain Destroyed 37 | 4 33 Melee . | . . Projectile . | . . AOE 37 | 4 33 Terrain Rammed . | . . Walls Destroyed . | . . Machines Disabled . | . . Actions | -11 -10 --------- Run | Yrd Mat Total 2891 | 1886 1005 Wait 1580 | 1488 92 Move 884 | 330 554 Hop . | . . Pick Up 24 | 10 14 Fast Attach 50 | 13 37 Attach 16 | 2 14 Detach 4 | . 4 Swap 22 | 4 18 Drop 36 | 5 31 Fire 275 | 34 241 Melee . | . . Ram . | . . Kick . | . . Crush . | . . Escape Stasis . | . . Rewire . | . . Trap . | . . Miscellaneous . | . . Route ------- -11/Scrapyard -10/Materials (discovered 2 exits: [*Min] / [*Sub]) History --------- Turn | Location | Event 13 | -11/Scrapyard | Discovered new exit (range 15) 182 | -11/Scrapyard | System corruption reached 10% 1932 | -11/Scrapyard | Entered Materials 1933 | -10/Materials | Build established: Mutant 2118 | -10/Materials | Lost 3 parts (1p2n) 2172 | -10/Materials | System corruption reached 30% 2805 | -10/Materials | Build established: Scavenger-Mutant 2903 | -10/Materials | Discovered new exit (range 13) 2982 | -10/Materials | Discovered new exit (range 7) 3132 | -10/Materials | Derelicts attacked the area 3227 | -10/Materials | Core integrity fell below 50% 3282 | -10/Materials | Core integrity fell below 20% 3288 | -10/Materials | Lost 5 parts (1p2n1u1w) 3559 | -10/Materials | System corrupted Last Messages --------------- 03513_ Complication: Wheel rejected. 03513_ Complication: EM Pulse Gun rejected. 03516_ Acquired EM Pulse Gun. 03521_ S6JTEXDGBLXQFJBIXL